[Event "44th Chess Olympiad Open 2022"]
[Site "Chennai"]
[Date "2022.08.07"]
[Round "9.37"]
[White "Johnson, Joshua"]
[Black "Risteski, Emil"]
[Result "0-1"]
[WhiteElo "2178"]
[BlackElo "2405"]
[Annotator "TA"]
[PlyCount "102"]
[EventDate "2022.??.??"]
[TimeControl "60"]

{[%evp 10,102,43,36,44,5,16,-73,-71,-66,-8,-20,-18,-12,-31,-24,-15,-15,-6,-56,
-21,-113,-82,-80,-86,-94,-89,-133,-34,-27,0,0,0,-127,-35,-38,-34,-44,-37,-67,
-64,-60,-52,-72,26,-152,-153,-226,-200,-244,-252,-290,-227,-232,-231,-477,-467,
-625,-627,-618,-470,-441,-281,-329,-321,-383,-350,-474,-470,-909,-887,-1770,
-545,-6087,-6087,-5373,-5377,-5185,-4160,-1782,-1717,-29977,-29978,-29978,
-29979,-29979,-29979,-29979,-29979,-29980,-29981,-29981,-29980,-29981,-29982]} 
1. d4 {[%emt 0:00:04]} Nf6 {[%emt 0:00:33]} 2. c4 {[%emt 0:00:03]} g6 {[%emt 0:
00:00]} 3. Nc3 {[%emt 0:00:12]} Bg7 {[%emt 0:00:06]} 4. e4 {[%emt 0:00:09]} d6
{[%emt 0:00:05]} 5. Be2 {[%emt 0:00:05]} O-O {[%emt 0:00:08]} 6. Be3 {[%emt 0:
00:00]} a5 {[%emt 0:00:08] E73: King's Indian: Averbakh Variation without 6...
c5.} 7. g4 {[%emt 0:02:29] [#]} c5 $146 {[%emt 0:00:28][%cal Yf6g4]} ({
Predecessor:} 7... e5 8. d5 Na6 9. h4 Nc5 10. f3 h5 11. g5 Nh7 12. Qd2 f6 13.
Nh3 Bxh3 14. Rxh3 fxg5 15. hxg5 a4 16. O-O-O Rf4 17. Rg3 Rh4 18. Rg2 b6 19. Nb5
Qe7 20. Kb1 Rf8 21. Qc2 {1-0 (41) Visakh,N (2516)-Matveev,V (2368) Chess.com
INT 2020}) 8. g5 {[%emt 0:20:25] [#]} (8. d5 $11) 8... Ng4 $1 $17 {[%emt 0:00:
00] Black is better.} 9. Bxg4 {[%emt 0:14:45]} Bxg4 {[%emt 0:00:15]} ({Better
is} 9... cxd4 $1 $15 10. Bxd4 (10. Bxc8 dxe3 11. Bxb7 exf2+ 12. Kxf2 Qb6+ 13.
Kg2 Qxb7 $17) 10... Bxd4 11. Qxd4 Bxg4) 10. Qxg4 $11 {[%emt 0:00:03]} cxd4 {
[%emt 0:00:06]} 11. Bxd4 {[%emt 0:00:02]} Bxd4 {[%emt 0:00:09]} 12. Nge2 {
[%emt 0:00:01]} Bg7 {[%emt 0:01:04]} 13. Rd1 {[%emt 0:03:18]} a4 {[%emt 0:00:
00]} 14. O-O {[%emt 0:04:41]} (14. h4 $11) 14... Ra5 {[%emt 0:14:56]} 15. Rd2 {
[%emt 0:16:55]} (15. b3 $11 {keeps the balance.}) 15... Nc6 {[%emt 0:00:08]}
16. f4 {[%emt 0:00:35] Inhibits Ne5.} Qb6+ {[%emt 0:02:39]} 17. Kh1 {[%emt 0:
00:00]} Qb4 {[%emt 0:03:32]} 18. f5 {[%emt 0:00:37]} Ne5 {[%emt 0:11:52]} (
18... Qxc4 $6 19. f6 exf6 20. gxf6 $11) (18... Bxc3 $17 19. bxc3 Qxc4) 19. Qh3
$15 {[%emt 0:06:50]} Nxc4 {[%emt 0:02:53]} 20. a3 {[%emt 0:00:08]} Qb6 {
[%emt 0:09:02]} 21. Rd5 {[%emt 0:07:14]} (21. Rd3 $1 $11 {was the only way to
keep the balance.}) 21... gxf5 {[%emt 0:15:05] Black is more active.} (21...
Nxb2 22. f6 exf6 23. gxf6 Bxf6 24. Rxf6 $18) (21... Re8 $1 $17 {Strongly
threatening ...e6.} 22. f6 exf6 23. gxf6 Bf8) 22. Rxa5 $1 {[%emt 0:02:14]} Qxa5
{[%emt 0:04:12]} 23. Nd5 {[%emt 0:00:05]} Re8 {[%emt 0:04:35]} (23... Bxb2 $2
24. Nxe7+ Kh8 25. g6 fxg6 26. Nxg6+ Kg8 27. Nxf8 $18) (23... fxe4 $2 24. g6 $1
h6 25. gxf7+ Kh8 26. Nef4 Rxf7 27. Qc8+ Kh7 28. Qxc4 $18) 24. Qxf5 {[%emt 0:00:
00]} Ne5 {[%emt 0:01:24]} 25. Ng3 $1 {[%emt 0:00:02]} Qd8 {[%emt 0:01:42] ...
e6 is the strong threat.} 26. Nh5 {[%emt 0:01:08]} Qd7 {[%emt 0:01:03]} (26...
Kh8 $17 {Threatens to win with ...e6.} 27. Nxg7 Kxg7) 27. Qf2 $2 {[%emt 0:00:
00]} ({Much worse is} 27. Nxg7 Kxg7 28. Kg2 b5 $15) (27. Rc1 $1 $11) 27... Qg4
$17 {[%emt 0:02:07][%csl Ye4,Yg5,Yh5] Black converts the advantage
convincingly.} 28. Nhf4 {[%emt 0:03:24]} (28. Ndf4 $17) 28... Qxg5 $19 {
[%emt 0:05:37]} 29. Rg1 {[%emt 0:03:26] [#]} Qh6 {[%emt 0:00:34]} 30. Qc2 {
[%emt 0:05:04][%cal Yd5e7]} Ng6 {[%emt 0:02:37]} 31. Qxa4 {[%emt 0:00:34]} Rf8
{[%emt 0:00:00]} 32. Rg3 $2 {[%emt 0:05:00]} (32. Nd3) 32... e6 {[%emt 0:02:07]
} ({Stronger than} 32... Nxf4 33. Nxe7+ Kh8 34. Nf5 $19) 33. Rh3 {[%emt 0:00:
00]} Qg5 {[%emt 0:00:10] Inhibits Nf6+.} 34. Rg3 {[%emt 0:00:08]} Qd8 {[%emt 0:
00:00]} 35. Nxg6 {[%emt 0:01:01]} hxg6 {[%emt 0:01:15]} 36. Ne3 {[%emt 0:00:31]
} Be5 {[%emt 0:00:48]} 37. Rh3 {[%emt 0:00:18]} Qb6 {[%emt 0:02:16]} 38. Nc4 {
[%emt 0:00:45]} Qc5 {[%emt 0:01:23] aiming for ...b5.} ({But not} 38... Qf2 $2
39. Qd1 $19) 39. Qb3 {[%emt 0:00:27]} (39. Ne3 $142 Rc8 40. Rf3) 39... Rc8 {
[%emt 0:00:37] White must now prevent ...Qf2.} 40. Nxe5 {[%emt 0:00:22]} Qxe5 {
[%emt 0:00:05] Endgame KQR-KQR} (40... Qc1+ $142 41. Kg2 Rc2+ 42. Kf3 dxe5 43.
Qxc2 Qxc2) 41. Re3 {[%emt 0:30:36]} Rc1+ {[%emt 0:31:24]} 42. Kg2 {[%emt 0:00:
00]} Qg5+ {[%emt 0:00:00]} 43. Rg3 {[%emt 0:00:00]} Qd2+ {[%emt 0:00:00]} 44.
Kh3 {[%emt 0:00:00]} Rc2 {[%emt 0:00:00]} 45. Rxg6+ {[%emt 0:00:00]} fxg6 {
[%emt 0:00:00] Black mates.} 46. Qxe6+ {[%emt 0:00:00] [#]} Kf8 $1 {[%emt 0:00:
00]} 47. Qf6+ {[%emt 0:00:00]} Ke8 {[%emt 0:00:00]} 48. Qxg6+ {[%emt 0:00:00]}
Kd8 {[%emt 0:00:00]} 49. Qf6+ {[%emt 0:00:00]} Kc7 {[%emt 0:00:00]} 50. Qf7+ {
[%emt 0:00:00]} Kb8 {[%emt 0:00:00]} 51. Qe8+ {[%emt 0:00:00]} Rc8 {[%emt 0:00:
00] Weighted Error Value: White=0.84/Black=0.38} 0-1

[Event "44th Chess Olympiad Open 2022"]
[Site "Chennai"]
[Date "2022.08.07"]
[Round "9.38"]
[White "Hernandez Guerrero, Gilberto"]
[Black "Makoto, Rodwell"]
[Result "1/2-1/2"]
[WhiteElo "2560"]
[BlackElo "2346"]
[Annotator "TA"]
[PlyCount "92"]
[EventDate "2022.??.??"]
[TimeControl "60"]

{[%evp 12,92,9,9,11,5,16,13,20,0,0,0,0,0,113,91,97,82,77,41,42,35,90,84,73,84,
76,87,85,81,97,52,69,0,0,0,0,2,50,43,40,13,27,24,18,18,18,0,14,6,39,0,101,0,56,
25,70,23,219,145,158,54,145,17,10,10,171,175,177,110,176,177,177,-8,-8,-8,-8,
-8,-8,-7,0,-5,-7]} 1. e4 {[%emt 0:00:12]} e5 {[%emt 0:03:20]} 2. Nf3 {[%emt 0:
00:00]} Nc6 {[%emt 0:00:08]} 3. Bb5 {[%emt 0:00:07]} a6 {[%emt 0:00:13]} 4. Ba4
{[%emt 0:00:07]} Nf6 {[%emt 0:00:13]} 5. d3 {[%emt 0:00:13]} b5 {[%emt 0:00:21]
} 6. Bb3 {[%emt 0:00:06]} Bc5 {[%emt 0:00:14]} 7. Nc3 {[%emt 0:00:14] 7.c3
gains popularity.} h6 {[%emt 0:00:46] C77: Ruy Lopez: 3...a6 4 Ba4 Nf6,
unusual lines.} 8. Nd5 {[%emt 0:00:18]} d6 {[%emt 0:07:47]} 9. c3 {[%emt 0:00:
00]} O-O {[%emt 0:04:23]} 10. Nxf6+ {[%emt 0:00:37]} Qxf6 {[%emt 0:00:07]} 11.
Bd5 {[%emt 0:00:06]} Bd7 {[%emt 0:05:58]} 12. Rg1 {[%emt 0:01:13]} Ne7 {
[%emt 0:24:37]} 13. Bxa8 $16 {[%emt 0:04:09]} Rxa8 {[%emt 0:00:09]} 14. Be3 {
[%emt 0:10:39]} Ng6 {[%emt 0:00:19]} 15. d4 {[%emt 0:12:19]} exd4 {[%emt 0:00:
00]} 16. Bxd4 {[%emt 0:00:06] [#]} Qe6 $146 {[%emt 0:02:18]} (16... Bxd4 $14
17. Qxd4 Qe6) ({Predecessor:} 16... Qe7 17. Qe2 Be6 18. a3 Rb8 19. Qe3 a5 20.
Kd2 f6 21. b4 Bb6 22. Bxb6 Rxb6 23. bxa5 {1-0 (57) Munguntuul,B (2433)
-Shuvalova,P (2509) Riga 2021}) 17. Bxc5 {[%emt 0:06:33]} dxc5 {[%emt 0:00:07]}
18. Qd5 {[%emt 0:00:09]} Qxd5 {[%emt 0:00:36]} 19. exd5 {[%emt 0:00:05]} Nf4 {
[%emt 0:00:10]} 20. Kd2 {[%emt 0:02:34]} Rd8 {[%emt 0:01:15]} 21. g3 {[%emt 0:
00:00]} Nh3 {[%emt 0:00:50] Threatens to win with ...Bg4.} 22. Rgf1 {[%emt 0:
00:00]} (22. Rge1 $14) 22... Bg4 $11 {[%emt 0:07:40][%csl Yd5,Yf3]} 23. Ng1 {
[%emt 0:01:34][%cal Yc3c4]} Rxd5+ {[%emt 0:00:59]} 24. Kc2 $1 {[%emt 0:00:46]
Black should prevent Nxh3.} Rh5 {[%emt 0:02:03]} (24... Bf5+ $11 {might be
stronger.} 25. Kb3 Nxg1 26. Rxg1 Rd2) 25. Nxh3 $14 {[%emt 0:01:38]} Rxh3 {
[%emt 0:00:12] Endgame KRR-KRB} 26. Kd2 {[%emt 0:00:58]} Rxh2 {[%emt 0:01:13]}
27. Ke3 {[%emt 0:00:41]} Rh5 {[%emt 0:00:12]} 28. f3 {[%emt 0:00:00] White has
compensation.} Be6 {[%emt 0:00:26]} 29. Rfd1 {[%emt 0:07:47]} Re5+ {[%emt 0:01:
47]} 30. Kf2 {[%emt 0:00:12]} Bd5 {[%emt 0:00:00]} 31. Rd3 {[%emt 0:02:45]} (
31. g4 $5 {[%cal Rf3f4]} c6 32. Re1 Rxe1 33. Rxe1 $14) 31... Rf5 {[%emt 0:01:
08] [#]} (31... c6 $11) 32. a4 {[%emt 0:02:15]} (32. g4 $1 $16 {[%cal Rg4f5]}
c4 33. gxf5 cxd3 34. Rd1) 32... h5 {[%emt 0:00:00]} (32... c6 $1 $11) 33. a5 {
[%emt 0:03:38]} b4 {[%emt 0:03:14]} 34. Re1 {[%emt 0:03:53]} (34. Re3 $14)
34... Kf8 $2 {[%emt 0:02:22]} (34... c4 $11 35. Rde3 bxc3) 35. Rde3 {[%emt 0:
01:01][%csl Ge1][%cal Re3e8]} g6 {[%emt 0:01:25]} 36. Re8+ {[%emt 0:01:48]} Kg7
{[%emt 0:00:06]} 37. R1e3 {[%emt 0:00:04]} (37. f4 $16) 37... bxc3 $1 $11 {
[%emt 0:04:11]} 38. bxc3 {[%emt 0:01:40] Black must now prevent R8e7.} c6 $2 {
[%emt 0:00:14]} (38... Kf6 $1 $11) 39. Ra8 $18 {[%emt 0:07:06]} Bc4 {[%emt 0:
00:44] [#]} 40. Rc8 {[%emt 0:01:04]} (40. f4 $1 $18) 40... Rf6 {[%emt 0:04:21]}
(40... Bd5 $16 {was worth a try.}) 41. Ree8 {[%emt 0:35:13]} Rf5 {[%emt 0:37:
41]} 42. Rxc6 $2 {[%emt 0:10:07]} ({White should play} 42. f4 $18) 42... Bb5
$11 {[%emt 0:00:27] The position is equal.} 43. Rec8 {[%emt 0:00:21]} Bxc6 {
[%emt 0:01:06]} 44. Rxc6 {[%emt 0:00:05]} c4 {[%emt 0:00:54]} 45. Rxa6 {
[%emt 0:00:49]} Rd5 {[%emt 0:00:36]} 46. Rc6 {[%emt 0:00:00]} Rxa5 {[%emt 0:00:
00] Weighted Error Value: White=0.33/Black=0.35} 1/2-1/2

[Event "44th Chess Olympiad Open 2022"]
[Site "Chennai"]
[Date "2022.08.07"]
[Round "9.38"]
[White "Capo Vidal, Uriel"]
[Black "Zhemba, Jemusse"]
[Result "0-1"]
[WhiteElo "2215"]
[BlackElo "2162"]
[Annotator "RC"]
[PlyCount "172"]
[EventDate "2022.??.??"]
[TimeControl "60"]

1. d4 {[%emt 0:00:04]} d5 {[%emt 0:02:15]} 2. Bf4 {[%emt 0:01:25]} c5 {[%emt 0:
00:00]} 3. e3 {[%emt 0:00:33]} Nc6 {[%emt 0:00:10]} 4. Nf3 {[%emt 0:01:00]}
cxd4 {[%emt 0:01:06]} 5. exd4 {[%emt 0:00:18]} Bg4 {[%emt 0:00:22]} 6. Nbd2 {
[%emt 0:07:04]} Qb6 {[%emt 0:02:20]} 7. Nb3 {[%emt 0:03:58]} e6 {[%emt 0:09:29]
} 8. Be2 {[%emt 0:17:13]} Be7 {[%emt 0:02:59]} 9. O-O {[%emt 0:01:48]} Nf6 {
[%emt 0:00:21]} 10. a4 {[%emt 0:00:16]} a5 {[%emt 0:01:31]} 11. h3 {[%emt 0:00:
00]} Bf5 {[%emt 0:01:17]} 12. Ne5 {[%emt 0:05:04]} O-O {[%emt 0:01:44]} 13. g4
{[%emt 0:03:56]} Be4 {[%emt 0:08:35]} 14. g5 {[%emt 0:03:15]} Nxe5 {[%emt 0:00:
00]} 15. gxf6 {[%emt 0:01:16]} Ng6 {[%emt 0:00:02]} 16. fxe7 {[%emt 0:01:30]}
Nxf4 {[%emt 0:00:11]} 17. exf8=Q+ {[%emt 0:00:15]} Rxf8 {[%emt 0:00:07]} 18. f3
{[%emt 0:26:39]} Bf5 {[%emt 0:08:25]} 19. Bd3 {[%emt 0:04:18]} Bxd3 {[%emt 0:
00:00]} 20. cxd3 {[%emt 0:00:14]} e5 {[%emt 0:00:12]} 21. Rf2 {[%emt 0:12:03]}
Nxh3+ {[%emt 0:01:30]} 22. Kf1 {[%emt 0:00:02]} Nxf2 {[%emt 0:00:41]} 23. Kxf2
{[%emt 0:00:01]} exd4 {[%emt 0:00:23]} 24. Rc1 {[%emt 0:02:38]} Re8 {[%emt 0:
00:00]} 25. Nd2 {[%emt 0:00:07]} Qf6 {[%emt 0:01:21]} 26. Nf1 {[%emt 0:01:46]}
Qh4+ {[%emt 0:00:48]} 27. Kg1 {[%emt 0:02:16]} h5 {[%emt 0:00:07]} 28. Rc2 {
[%emt 0:00:08]} Re6 {[%emt 0:03:57]} 29. Rg2 {[%emt 0:00:16]} Qf4 {[%emt 0:00:
00]} 30. Qd2 {[%emt 0:00:59]} Qxf3 {[%emt 0:00:59]} 31. Qxa5 {[%emt 0:00:30]}
Rf6 {[%emt 0:00:42]} 32. Qe1 {[%emt 0:00:20]} Qxd3 {[%emt 0:00:52]} 33. Ng3 {
[%emt 0:00:47]} Re6 {[%emt 0:04:06]} 34. Qf1 {[%emt 0:00:29]} Qe3+ {[%emt 0:00:
00]} 35. Kh2 {[%emt 0:03:06]} d3 {[%emt 0:02:52]} 36. Qf5 {[%emt 0:00:00]} h4 {
[%emt 0:02:30]} 37. Nf1 {[%emt 0:00:00]} Qd4 {[%emt 0:01:11]} 38. Qg4 {[%emt 0:
00:00]} Qe5+ {[%emt 0:02:23]} 39. Kh3 {[%emt 0:00:00]} g6 {[%emt 0:02:19]} 40.
Qf3 {[%emt 0:00:00]} Qd4 {[%emt 0:02:11]} 41. Rf2 {[%emt 0:07:45]} f5 {[%emt 0:
00:00]} 42. Rd2 {[%emt 0:00:19]} Re2 {[%emt 0:04:46]} 43. Rxd3 {[%emt 0:02:06]}
Rf2 {[%emt 0:00:20]} 44. Rxd4 {[%emt 0:03:52]} Rxf3+ {[%emt 0:00:07]} 45. Kg2 {
[%emt 0:10:10]} Rb3 {[%emt 0:00:20]} 46. Rxd5 {[%emt 0:00:26]} Rxb2+ {[%emt 0:
00:00]} 47. Kh3 {[%emt 0:02:35]} Rb4 {[%emt 0:00:59]} 48. Rb5 {[%emt 0:03:25]}
Rxa4 {[%emt 0:01:21]} 49. Rxb7 {[%emt 0:00:07]} g5 {[%emt 0:00:28]} 50. Rc7 {
[%emt 0:02:59]} Ra3+ {[%emt 0:00:35]} 51. Kh2 {[%emt 0:00:24]} Rf3 {[%emt 0:00:
00]} 52. Kg2 {[%emt 0:01:21]} g4 {[%emt 0:00:08]} 53. Nd2 {[%emt 0:00:40]} h3+
{[%emt 0:02:16]} 54. Kg1 {[%emt 0:00:46]} Rg3+ {[%emt 0:00:25]} 55. Kh1 {
[%emt 0:00:32]} Rd3 {[%emt 0:00:30]} 56. Nf1 {[%emt 0:00:26]} Rd1 {[%emt 0:00:
00]} 57. Kg1 {[%emt 0:00:05]} h2+ {[%emt 0:00:08]} 58. Kxh2 {[%emt 0:00:19]}
Rxf1 {[%emt 0:00:06]} 59. Kg2 {[%emt 0:00:11]} Rf3 {[%emt 0:01:49]} 60. Rb7 {
[%emt 0:00:09]} f4 {[%emt 0:03:31]} 61. Ra7 {[%emt 0:00:29]} Rg3+ {[%emt 0:00:
00]} 62. Kf2 {[%emt 0:00:10]} Rh3 {[%emt 0:00:50]} 63. Ra5 {[%emt 0:01:59]}
Rh2+ {[%emt 0:01:06]} 64. Kg1 {[%emt 0:00:14]} g3 {[%emt 0:00:08]} 65. Rf5 {
[%emt 0:00:51]} Rf2 {[%emt 0:00:09]} 66. Rf6 {[%emt 0:00:26]} Kg7 {[%emt 0:00:
00]} 67. Ra6 {[%emt 0:00:13]} f3 {[%emt 0:00:57]} 68. Ra4 {[%emt 0:00:04]} Rg2+
{[%emt 0:00:33]} 69. Kf1 {[%emt 0:00:02]} Kg6 {[%emt 0:00:18]} 70. Rf4 {
[%emt 0:00:44]} Rf2+ {[%emt 0:00:12]} 71. Kg1 {[%emt 0:00:02]} Kg5 {[%emt 0:00:
00]} 72. Rf8 {[%emt 0:00:02]} Kg4 {[%emt 0:01:45]} 73. Rg8+ {[%emt 0:00:09]}
Kf4 {[%emt 0:00:06]} 74. Rf8+ {[%emt 0:00:14]} Ke3 {[%emt 0:00:13]} 75. Re8+ {
[%emt 0:00:08]} Kd3 {[%emt 0:00:19]} 76. Rd8+ {[%emt 0:00:37]} Ke2 {[%emt 0:00:
00]} 77. Re8+ {[%emt 0:00:06]} Kd2 {[%emt 0:01:39]} 78. Rg8 {[%emt 0:00:43]}
Rg2+ {[%emt 0:00:57]} 79. Kf1 {[%emt 0:00:11]} Kd1 {[%emt 0:00:25]} 80. Rg7 {
[%emt 0:00:27]} Rf2+ {[%emt 0:04:33]} 81. Kg1 {[%emt 0:00:01]} Rd2 {[%emt 0:00:
00]} 82. Rf7 {[%emt 0:04:24]} Rd3 {[%emt 0:01:07]} 83. Re7 {[%emt 0:00:36]} Kc2
{[%emt 0:00:22]} 84. Rc7+ {[%emt 0:00:25]} Kb3 {[%emt 0:00:19]} 85. Rc1 {
[%emt 0:00:33]} Rd2 {[%emt 0:00:21]} 86. Rf1 {[%emt 0:00:28]} Rg2+ {[%emt 0:00:
00]} 0-1

[Event "44th Chess Olympiad Open 2022"]
[Site "Chennai"]
[Date "2022.08.07"]
[Round "9.38"]
[White "Masango, Spencer"]
[Black "Diaz Rosas, Julio Cesar"]
[Result "0-1"]
[WhiteElo "2170"]
[BlackElo "2328"]
[Annotator "RC"]
[PlyCount "79"]
[EventDate "2022.??.??"]
[TimeControl "60"]

1. Nf3 {[%emt 0:00:31]} d5 {[%emt 0:00:24]} 2. g3 {[%emt 0:00:17]} Nf6 {
[%emt 0:00:33]} 3. Bg2 {[%emt 0:00:12]} e6 {[%emt 0:01:05]} 4. O-O {[%emt 0:00:
00]} Be7 {[%emt 0:00:07]} 5. d4 {[%emt 0:00:25]} O-O {[%emt 0:00:11]} 6. c4 {
[%emt 0:00:06]} dxc4 {[%emt 0:01:47]} 7. Ne5 {[%emt 0:00:23]} Nc6 {[%emt 0:00:
00]} 8. Bxc6 {[%emt 0:00:12]} bxc6 {[%emt 0:00:05]} 9. Nxc6 {[%emt 0:00:05]}
Qd7 {[%emt 0:00:20]} 10. Nxe7+ {[%emt 0:00:27]} Qxe7 {[%emt 0:00:04]} 11. Qc2 {
[%emt 0:01:18]} c5 {[%emt 0:02:55]} 12. dxc5 {[%emt 0:05:41]} Qxc5 {[%emt 0:00:
00]} 13. Be3 {[%emt 0:00:38]} Qh5 {[%emt 0:02:58]} 14. f3 {[%emt 0:00:13]} Bb7
{[%emt 0:04:03]} 15. Qxc4 {[%emt 0:11:21]} Rfc8 {[%emt 0:00:09]} 16. Qa4 {
[%emt 0:00:49]} Bc6 {[%emt 0:04:52]} 17. Qh4 {[%emt 0:05:58]} Qxh4 {[%emt 0:00:
00]} 18. gxh4 {[%emt 0:03:32]} Nd5 {[%emt 0:00:04]} 19. Kf2 {[%emt 0:08:23]}
Rab8 {[%emt 0:00:24]} 20. b3 {[%emt 0:04:05]} Rb4 {[%emt 0:20:29]} 21. Bxa7 {
[%emt 0:11:05]} Rxh4 {[%emt 0:00:04]} 22. Rh1 {[%emt 0:01:12]} Nb4 {[%emt 0:00:
00]} 23. a3 {[%emt 0:07:10]} Nd5 {[%emt 0:06:21]} 24. Nd2 {[%emt 0:03:54]} Bb7
{[%emt 0:03:20]} 25. Nc4 {[%emt 0:09:47]} Ba6 {[%emt 0:00:43]} 26. Ne3 {
[%emt 0:01:30]} Nf4 {[%emt 0:03:02]} 27. Ra2 {[%emt 0:03:29]} Rc3 {[%emt 0:00:
00]} 28. Rd2 {[%emt 0:02:54]} h6 {[%emt 0:02:05]} 29. Rb2 {[%emt 0:06:43]} Bxe2
{[%emt 0:05:32]} 30. Rxe2 {[%emt 0:01:05]} Nxe2 {[%emt 0:00:03]} 31. Kxe2 {
[%emt 0:00:06]} Rxb3 {[%emt 0:00:16]} 32. Bc5 {[%emt 0:01:35]} f5 {[%emt 0:00:
00]} 33. Bb4 {[%emt 0:02:50]} Rh3 {[%emt 0:03:17]} 34. Bd6 {[%emt 0:01:41]}
Rb2+ {[%emt 0:00:58]} 35. Ke1 {[%emt 0:05:43]} Rxf3 {[%emt 0:00:36]} 36. Nd1 {
[%emt 0:00:42]} Ra2 {[%emt 0:02:57]} 37. h4 {[%emt 0:00:46]} Rd3 {[%emt 0:00:
00]} 38. Be5 {[%emt 0:00:47]} Raxa3 {[%emt 0:00:54]} 39. Ke2 {[%emt 0:01:03]}
Rd5 {[%emt 0:01:33]} 40. Bc7 {[%emt 0:00:00]} 0-1

[Event "44th Chess Olympiad Open 2022"]
[Site "Chennai"]
[Date "2022.08.07"]
[Round "9.38"]
[White "Mwadzura, Roy"]
[Black "Montes Orozco, Miguel Angel"]
[Result "1-0"]
[WhiteElo "2093"]
[BlackElo "2070"]
[Annotator "NA RC"]
[PlyCount "59"]
[EventDate "2022.??.??"]
[TimeControl "60"]

1. e4 {[%emt 0:01:54]} e5 {[%emt 0:00:09]} 2. Nf3 {[%emt 0:00:06]} Nc6 {
[%emt 0:00:06]} 3. Bc4 {[%emt 0:00:05]} Nf6 {[%emt 0:00:16]} 4. d3 {[%emt 0:00:
00]} Bc5 {[%emt 0:00:17]} 5. c3 {[%emt 0:00:07]} O-O {[%emt 0:00:07]} 6. Bg5 {
[%emt 0:01:59]} h6 {[%emt 0:02:11]} 7. Bh4 {[%emt 0:00:05]} d6 {[%emt 0:00:06]}
8. Nbd2 {[%emt 0:00:18]} g5 {[%emt 0:05:06]} 9. Nxg5 {[%emt 0:17:59]} hxg5 {
[%emt 0:00:07]} 10. Bxg5 {[%emt 0:00:03]} Kg7 {[%emt 0:02:54]} 11. Qf3 {
[%emt 0:00:05]} Rh8 {[%emt 0:06:47]} 12. Nf1 {[%emt 0:01:54]} Na5 {[%emt 0:00:
00]} 13. Ne3 {[%emt 0:19:46]} Nxc4 {[%emt 0:02:30]} 14. Nd5 {[%emt 0:01:12]}
Nxd5 {[%emt 0:05:00]} 15. Bxd8 {[%emt 0:00:46]} Rxd8 {[%emt 0:00:20]} 16. exd5
{[%emt 0:00:21]} Nxb2 {[%emt 0:00:08]} 17. a4 {[%emt 0:04:22]} Bd7 {[%emt 0:00:
00]} 18. Ra2 {[%emt 0:00:07]} Nxa4 {[%emt 0:00:47]} 19. Rxa4 {[%emt 0:00:06]}
Bxa4 {[%emt 0:00:06]} 20. Qg4+ {[%emt 0:00:02]} Kf8 {[%emt 0:00:24]} 21. Qxa4 {
[%emt 0:00:06]} b5 {[%emt 0:00:17]} 22. Qa5 {[%emt 0:02:58]} a6 {[%emt 0:02:37]
} 23. h4 {[%emt 0:15:26]} Bb6 {[%emt 0:00:07]} 24. Qb4 {[%emt 0:07:16]} Ke7 {
[%emt 0:00:34]} 25. h5 {[%emt 0:00:48]} Rg8 {[%emt 0:00:11]} 26. h6 {[%emt 0:
00:00]} Rxg2 {[%emt 0:00:11]} 27. h7 {[%emt 0:00:30]} Rh8 {[%emt 0:00:06]} 28.
Qh4+ {[%emt 0:00:07]} f6 {[%emt 0:00:16]} 29. Qh3 {[%emt 0:01:01]} Rg6 {
[%emt 0:01:35]} 30. Qe6+ {[%emt 0:01:36]} 1-0